Cogmind - Beta 16 @@@ ROGUE MODE // 2025.11.06 @ 21:14:53 Player: StaticNoob Result: Destroyed by C4-WSQ(R) with Subdweller Machine Gun Performance ------------- Evolutions (0) 0 Regions Visited (2) 400 Robots Destroyed (25) 125 Value Destroyed (705) 705 Prototype IDs (0) 0 Alien Tech Used (0) 0 Bonus (0) 0 TOTAL SCORE: 1230 Bonus ------- None Cogmind --------- Core Integrity 0/250 Matter 280/300 Energy 226/250 System Corruption 0% Temperature Cool (0) Movement Rolling (95) Location -10/Subcaves Parts ------- > --- POWER (1) -------- Ion Engine > --- PROPULSION (2) --- Wheel Subdweller Monowheel > --- UTILITY (2) ------ Medium Storage Unit Improved Terrain Scanner > --- WEAPON (2) ------- Subdweller Laser Beam Cannon > --- INVENTORY (10) --- Subdweller Power Source Wheel Subdweller Optics ECM Suite Scrap Shield Subdweller Beam Cannon Grenade Launcher Datajack Peak State ------------ > --- POWER ------------ Ion Engine > --- PROPULSION ------- Wheel Subdweller Monowheel > --- UTILITY ---------- Medium Storage Unit Improved Terrain Scanner > --- WEAPON ----------- Subdweller Laser Beam Cannon > --- INVENTORY -------- Subdweller Power Source Wheel Subdweller Optics ECM Suite Scrap Shield Subdweller Beam Cannon Grenade Launcher Datajack [Rating: 12] Favorites ----------- Power Ion Engine Engine Ion Engine Propulsion Light Treads Treads Light Treads Wheel Wheel Utility Medium Storage Unit Device Improved Terrain Scanner Storage Medium Storage Unit Protection Light Armor Plating Weapon Light Assault Rifle Energy Gun Small Laser Energy Cannon Beam Cannon Ballistic Gun Light Assault Rifle Ballistic Cannon Light Cannon Launcher Grenade Launcher Build | -11 -10 -10 ------- Run | Yrd Mat Sub Slots Evolved . | . . . Power . | . . . Propulsion . | . . . Utility . | . . . Weapon . | . . . Parts Attached 19 | 7 3 9 Power 2 | 1 1 . Engine 2 | 1 1 . Core . | . . . Reactor . | . . . Propulsion 7 | 2 . 5 Treads 2 | 2 . . Leg . | . . . Wheel 5 | . . 5 Hover . | . . . Flight . | . . . Utility 4 | 2 1 1 Device 1 | 1 . . Storage 2 | 1 1 . Processor . | . . . Hackware . | . . . Protection 1 | . . 1 Artifact . | . . . Weapon 6 | 2 1 3 Energy Gun 2 | 1 . 1 Energy Cannon 1 | . . 1 Ballistic Gun 1 | 1 . . Ballistic Cannon 1 | . 1 . Launcher 1 | . . 1 Special Weapon . | . . . Impact Weapon . | . . . Slashing Weapon . | . . . Piercing Weapon . | . . . Special Melee Weapon . | . . . Unidentified Prototypes . | . . . Parts Lost 8 | . 1 7 Power 1 | . 1 . Propulsion 4 | . . 4 Utility 1 | . . 1 Weapon 2 | . . 2 Highest Loss Streak 2 | . 1 2 To Critical Strikes . | . . . Average Backups 4 | . 2 7 Power . | . . . Propulsion . | . . 1 Utility 1 | . . 2 Weapon . | . . 1 Tool/Special . | . . . Unused Backups 6 | . . 6 Power 1 | . . 1 Propulsion . | . . . Utility 3 | . . 3 Weapon 1 | . . 1 Tool/Special 1 | . . 1 Average Slot Usage (%) 99 | . 99 99 Engine 13 | . 13 14 Treads 20 | . 28 7 Wheel 7 | . . 19 Device 10 | . 14 4 Storage 14 | . 14 14 Protection 3 | . . 9 Energy Gun 3 | . 5 1 Energy Cannon 3 | . . 8 Ballistic Gun 10 | . 14 5 Ballistic Cannon 10 | . 8 12 Peak Build Rating 12 | 9 9 12 Average Rating 8 | 5 8 8 On Entrance 6 | . 9 9 Avg Prop Armor Cover (%) . | . . . Naked Turns . | . . . Heaviest Build 25 | 13 20 25 Greatest Support 40 | 40 40 40 Greatest Overweight (x) 3 | 3 . 1 Average Overweight (x) . | . . . Largest Inventory Capacity 10 | 8 10 10 Average Capacity 9 | 7 9 10 Most Carried 10 | 1 8 10 Average Carried 4 | . 2 7 Final Capacity 10 | 8 10 10 Final Carried 9 | 1 8 9 Class Distribution -------------------- 100% | Mutant Dominant Class ---------------- Mutant | -10/Materials Mutant | -10/Subcaves Resources | -11 -10 -10 ----------- Run | Yrd Mat Sub Matter Collected 719 | 160 332 227 Remotely . | . . . Salvage Created 755 | 52 484 219 Parts 48 | 10 19 19 Haulers Intercepted . | . . . Recyclers Shooed 1 | 1 . . Parts Field Recycled . | . . . Retrieved Matter . | . . . Parts Self-Destructed 7 | . . 7 Prevented . | . . . Parts Restored . | . . . Kills | -11 -10 -10 ------- Run | Yrd Mat Sub Combat Hostiles Destroyed 16 | . 9 7 Guns 7 | . 7 . Cannons 8 | . 1 7 AOE 1 | . 1 . Classes Destroyed 6 | 1 4 1 Worker 1 | . 1 . Tunneler 4 | 4 . . Recycler 1 | . 1 . Watcher 3 | . 3 . Grunt 9 | . 9 . Subdweller 7 | . . 7 Best Kill Streak 4 | 4 3 3 Combat Bots Only 3 | . 2 3 Max Kills in Single Turn 2 | 1 2 1 Gunslinging . | . . . Exploded 1 | . 1 . Melee . | . . . Uniques/NPCs Destroyed . | . . . Combat | -11 -10 -10 -------- Run | Yrd Mat Sub Hostile Shots Fired 99 | . 56 43 Missed 19 | . 9 10 Hits 80 | . 47 33 Projectile 80 | . 47 33 Critical Strikes 2 | . . 2 Damage Taken 1306 | . 568 738 Core 267 | . 84 183 Absorbed by Shields . | . . . Core Remaining (%) 100 | 100 . . Volleys Fired 137 | 10 82 45 Largest 2 | 2 2 2 Hottest 120 | 60 60 120 Shots Fired 249 | 20 154 75 Gun 158 | 20 123 15 Cannon 88 | . 31 57 Launcher 3 | . . 3 Special . | . . . Kinetic 159 | 10 112 37 Thermal 87 | 10 42 35 Explosive 3 | . . 3 Electromagnetic . | . . . Robot Hit Streak 13 | 6 9 13 Robot Miss Streak 6 | 2 6 3 Penetration Max . | . . . Secondary Targets . | . . . Shots Hit Robots 136 | 11 72 53 Core Hits 50 | 6 28 16 Critical Kills . | . . . Critical Parts Destroyed . | . . . Critical Strikes . | . . . Melee Attacks . | . . . Impact . | . . . Slashing . | . . . Piercing . | . . . Sneak Attacks . | . . . Combat Hostiles . | . . . Follow-up Attacks . | . . . Damage Inflicted 1973 | 117 995 861 Guns 837 | 117 626 94 Cannons 940 | . 173 767 Explosions 196 | . 196 . Melee . | . . . Ramming . | . . . Kinetic 901 | 38 489 374 Thermal 876 | 79 310 487 Explosive 196 | . 196 . Electromagnetic . | . . . Impact . | . . . Slashing . | . . . Piercing . | . . . Highest Corruption . | . . . Average Corruption . | . . . Corruption Purged . | . . . Corruption Blocked . | . . . Overload Shots . | . . . Overflow Damage 2 | . 2 . Projectiles . | . . . Explosions 2 | . 2 . Melee . | . . . Knockbacks 5 | . 1 4 Impact . | . . . Kinetic 5 | . 1 4 Secondary . | . . . Self-Inflicted Damage 52 | . . 52 Shots 2 | . . 2 Rammed . | . . . Targets Rammed . | . . . Kicked . | . . . Crushed . | . . . Highest Temperature 200 | 40 200 . Average Temperature 48 | 23 51 . Received Heat Transfer 423 | . 309 114 Siege Activations . | . . . Martial Activations . | . . . Shielding Activations . | . . . Robots Disrupted . | . . . Combat Hostiles . | . . . Robots Corrupted . | . . . Combat Hostiles . | . . . Parts Fried . | . . . Impact Corruptions . | . . . Robots Melted . | . . . Combat Hostiles . | . . . Parts Melted . | . . . Heat Transferred 1887 | 175 700 1012 Parts Sabotaged . | . . . Parts Stolen . | . . . Parts Stripped . | . . . Power Chain Reactions . | . . . Alert | -11 -10 -10 ------- Run | Yrd Mat Sub Maximum Alert Level . | . . . Low Security (%) 100 | 100 100 . Level 1 . | . . . Level 2 . | . . . Level 3 . | . . . Level 4 . | . . . Level 5 . | . . . High Security . | . . . Max Security . | . . . Peak Influence 168 | 10 168 . Initial . | . . . Average 41 | 1 44 . Influence Increases 412 | 20 392 . Destroy 0b10 Robot/C 180 | . 180 . Destroy 0b10 Robot/NC 45 | 20 25 . Destroy Leader 56 | . 56 . Successful Hack 39 | . 39 . Disable Machine 15 | . 15 . Destroy Structure 17 | . 17 . Lose Combat Pursuer 60 | . 60 . Influence Decreases 412 | 20 392 . Time Decay 402 | 20 382 . Lost Part 10 | . 10 . Squads Dispatched 3 | . 3 . Investigation . | . . . Extermination . | . . . Reinforcement 3 | . 3 . Assault . | . . . Garrison . | . . . Intercept . | . . . Searches Triggered . | . . . Construction Impeded . | . . . Haulers Reinforced . | . . . Active Scanning Responses . | . . . Cargo Convoy Interrupts . | . . . Stealth | -11 -10 -10 --------- Run | Yrd Mat Sub Distress Signals 3 | . 3 . Communications Jammed . | . . . Distress Signals . | . . . Times Spotted 38 | . 30 8 Peak Tracking Total 4 | . 4 2 Tactical Retreats 4 | . 4 . Traps | -11 -10 -10 ------- Run | Yrd Mat Sub Traps Triggered . | . . . Indirectly . | . . . Trap Hack Attempts . | . . . Triggered . | . . . Disarmed . | . . . Reprogrammed . | . . . Reused . | . . . Traps Extracted . | . . . Installed 1 | . . 1 Triggered . | . . . Machines | -11 -10 -10 ---------- Run | Yrd Mat Sub Machines Disabled 1 | . 1 . Max in Single Turn 1 | . 1 . Machines Repaired . | . . . Machines Dismantled . | . . . Machines Sabotaged . | . . . Overloaded Fab Kills . | . . . Hacking | -11 -10 -10 --------- Run | Yrd Mat Sub Machines Accessed 5 | . 5 . Terminals 5 | . 5 . Fabricators . | . . . Repair Stations . | . . . Recycling Units . | . . . Scanalyzers . | . . . Garrison Access . | . . . Total Hacks 15 | . 15 . Successful 5 | . 5 . Failed 10 | . 10 . Catastrophic 1 | . 1 . Database Lockouts . | . . . Manual 14 | . 14 . Terminals 15 | . 15 . Fabricators . | . . . Repair Stations . | . . . Recycling Units . | . . . Scanalyzers . | . . . Garrison Access . | . . . Terminal Hacks 1 | . 1 . Locate Traps 1 | . 1 . Fabricator Hacks . | . . . Repair Station Hacks . | . . . Recycling Unit Hacks . | . . . Scanalyzer . | . . . Garrison Access Hacks . | . . . Unauthorized Hacks 4 | . 4 . Terminals 4 | . 4 . Botnet 1 | . 1 . Skim 3 | . 3 . Fabricators . | . . . Repair Stations . | . . . Recycling Units . | . . . Scanalyzers . | . . . Garrison Access . | . . . Data Cores Recovered . | . . . Used . | . . . Hacking Detections 5 | . 5 . Full Trace Events . | . . . Feedback Events . | . . . Feedback Blocked . | . . . Robot Schematics Acquired . | . . . Robots Built . | . . . Authchips . | . . . Time . | . . . Total Robot Build Rating . | . . . Part Schematics Acquired . | . . . Parts Built . | . . . Authchips . | . . . Time . | . . . Total Part Build Rating . | . . . Part Studies Acquired . | . . . Parts Repaired . | . . . Time . | . . . Parts Recycled . | . . . Recycled Matter . | . . . Retrieved Matter . | . . . Retrieved Components . | . . . Parts Scanalyzed . | . . . Part Schematics Acquired . | . . . Parts Damaged . | . . . Bothacking | -11 -10 -10 ------------ Run | Yrd Mat Sub Used RIF Installer . | . . . Robots Hacked . | . . . Non-combat . | . . . Combat . | . . . Robot Hacks Applied . | . . . Relay Couplers Released . | . . . Fabnet Peak Effective % . | . . . Robots Rewired . | . . . Allies Hacked . | . . . Hacks Repelled . | . . . Allies | -11 -10 -10 -------- Run | Yrd Mat Sub Total Allies . | . . . Largest Group . | . . . Highest-Rated Group . | . . . Highest-Rated Ally . | . . . Total Orders . | . . . Ally Attacks . | . . . Total Damage . | . . . Kills . | . . . Allies Corrupted . | . . . Allies Melted . | . . . Intel | -11 -10 -10 ------- Run | Yrd Mat Sub Active Infowar (turns) 1932 | 11 1620 301 Terrain 1932 | 11 1620 301 Robot Analysis Total . | . . . Derelict Logs Recovered 2 | . . 2 Drone Launches . | . . . Drone Recoveries . | . . . Exploration | -11 -10 -10 ------------- Run | Yrd Mat Sub Turns Passed 2675 | 105 1620 950 Spaces Moved 1636 | 42 855 739 Core 4 | 4 . . Treads 1049 | 38 855 156 Legs . | . . . Wheels 583 | . . 583 Hover . | . . . Flight . | . . . Fastest Speed 50 | 50 160 80 Average Speed 136 | 157 160 108 Slowest Speed 200 | 200 160 160 Overloaded Moves . | . . . Propulsion Burnouts . | . . . Robots Hopped . | . . . Potential Cave-ins . | . . . Cave-ins Triggered . | . . . Exploration Rate (%) 50 | 4 98 49 Regions Visited 2 Branch Regions 1 Pre-discovered Areas . | . . . Known Exits Taken . | . . . Unknown Exits Taken 2 | 1 1 . Scrap Searched 2 | . . 2 Spaces Dug . | . . . Terrain Destroyed 33 | . 17 16 Melee . | . . . Projectile . | . . . AOE 33 | . 17 16 Terrain Rammed . | . . . Walls Destroyed . | . . . Machines Disabled . | . . . Actions | -11 -10 -10 --------- Run | Yrd Mat Sub Total 1838 | 59 969 810 Wait 29 | . 20 9 Move 1634 | 41 854 739 Hop . | . . . Pick Up 14 | 1 8 5 Fast Attach 9 | 7 1 1 Attach 7 | . 1 6 Detach . | . . . Swap 5 | . 1 4 Drop 2 | . 2 . Fire 137 | 10 82 45 Melee . | . . . Ram . | . . . Kick . | . . . Crush . | . . . Escape Stasis . | . . . Rewire . | . . . Trap 1 | . . 1 Miscellaneous . | . . . Route ------- -11/Scrapyard -10/Materials (discovered 6 exits: [*Mat x3] / [*Min x2] / [*Sub]) -10/Subcaves History --------- Turn | Location | Event 27 | -11/Scrapyard | Discovered new exit (range 15) 106 | -11/Scrapyard | Entered Materials 150 | -10/Materials | Discovered new exit (range 11) 214 | -10/Materials | Discovered new exit (range 13) 306 | -10/Materials | Build established: Mutant 488 | -10/Materials | Discovered new exit (range 6) 561 | -10/Materials | Discovered new exit (range 6) 763 | -10/Materials | Discovered new exit (range 15) 875 | -10/Materials | Discovered new exit (range 15) 1726 | -10/Materials | Entered Subcaves 2136 | -10/Subcaves | Shifting Twisted Machinery released Shrapnel Trap 2140 | -10/Subcaves | Shifting Twisted Machinery released Scrap Shield 2234 | -10/Subcaves | Core integrity fell below 50% 2438 | -10/Subcaves | Shifting Twisted Machinery released Riot Gun 2479 | -10/Subcaves | Learned Materials terminal intel 2544 | -10/Subcaves | Learned Materials trap positions 2552 | -10/Subcaves | Disturbed a concealed Subdweller 2622 | -10/Subcaves | Core integrity fell below 20% 2676 | -10/Subcaves | Destroyed by C4-WSQ(R) with Subdweller Machine Gun Last Messages --------------- 02567_ Acquired Sub. Laser. 02569_ Acquired 3 matter. 02570_ Acquired 2 matter. 02572_ Searching scrap... 02572_ Found Flamer. 02572_ Found Sub. Beam Cannon. 02572_ Found 40 Matter. 02573_ Acquired 11 matter. 02573_ Searching scrap... 02573_ Found Scrap Shield. 02573_ Found 59 Matter. 02577_ Acquired Sub. Beam Cannon. 02581_ Acquired Sub. Power Source. 02619_ Wheel destroyed. 02623_ Lgt. Armor Plating destroyed. 02625_ DF-Q8W(R) destroyed. 02640_ Acquired 5 matter. 02664_ C4-WSQ(R): "SUBSUB!" 02673_ C4-WSQ(R) affixes Scrap Shield Fragment to Scrap Shield. Map ----- +----------------------------------------------------+ | ????????????????????????????????????????? | | ????????????????????????????????????????? | | ????????????????????????????????????????? | | ????????????????????????????????????????? | | ????????????????????????????????????????? | | ????????????????????????????????????????? | | ????????????????????????????????????????? | | ????????????????????????????????????????? | | ???????????????#?? ????????????????????? | | ?????????????????? ????????????????????? | | ?????????????????? ???????# ??????????? | | ?????????????????# ??????? ??????????? | | ????????????????## #??? ? ??????????? | | ????????????????# ????? ???????????? | | ???????????????## #????? #????#??????? | | ???????????????# ###### ???? #??????? | | ??????#????????# #? ???? #??????? | | ??????????????## ? ??? #??????? | | ??????????????? ?? ???# #??????? | | ???????????????## #??# #??# #???????? | | ???????????????# #### ### #????????? | | ??????????????#?# ## #??????#?#? | | ?????????????##"#" #?##???????? | | ???????????# # ### #?#?????? | | ?????????#?#